Workbook

Sheet Data
A1: Task number | B1: Task name | C1: Description | D1: resource | E1: Start | F1: End | G1: Estimated time | H1: Costs
A2: 1 | B2: ="task " & A2 -> task 1 | E2: 2019-09-02 | F2: 2019-12-23
A3: 1.1 | B3: ="task " & A3 -> task 1.1 | E3: 2019-09-02 | F3: 2019-09-06 | G3: =_xlfn.AGGREGATE( AGGR_FUN, AGGR_OPT, G4:G7 ) * nFACTOR -> 17 | H3: =_xlfn.AGGREGATE( AGGR_FUN, AGGR_OPT, H4:H7 ) * nFACTOR -> 6800
A4: 1.1.1 | B4: ="task " & A4 -> task 1.1.1 | C4: ="descr " & A4 -> descr 1.1.1 | D4: ="resource " & A4 -> resource 1.1.1 | E4: 2019-09-02 | F4: 2019-09-02 | G4: 2 | H4: =G4*400 -> 800
A5: 1.1.2 | B5: ="task " & A5 -> task 1.1.2 | C5: ="descr " & A5 -> descr 1.1.2 | D5: ="resource " & A5 -> resource 1.1.2 | E5: 2019-09-02 | F5: 2019-09-02 | G5: 3 | H5: 1200
A6: 1.1.3 | B6: ="task " & A6 -> task 1.1.3 | C6: ="descr " & A6 -> descr 1.1.3 | D6: ="resource " & A6 -> resource 1.1.3 | E6: 2019-09-03 | F6: 2019-09-03 | G6: 3 | H6: 1200
A7: 1.1.4 | B7: ="task " & A7 -> task 1.1.4 | C7: ="descr " & A7 -> descr 1.1.4 | D7: ="resource " & A7 -> resource 1.1.4 | E7: 2019-09-04 | F7: 2019-09-06 | G7: 9 | H7: 3600
A8: 1.2 | B8: ="task " & A8 -> task 1.2 | E8: 2019-09-09 | F8: 2019-09-12 | G8: =_xlfn.AGGREGATE( AGGR_FUN, AGGR_OPT, G9 ) * nFACTOR -> 32 | H8: =_xlfn.AGGREGATE( AGGR_FUN, AGGR_OPT, H9 ) * nFACTOR -> 12800
A9: 1.2.1 | B9: ="task " & A9 -> task 1.2.1 | C9: ="descr " & A9 -> descr 1.2.1 | D9: ="resource " & A9 -> resource 1.2.1 | E9: 2019-09-09 | F9: 2019-09-12 | G9: 32 | H9: =G9*400 -> 12800
A10: 1.3 | B10: ="task " & A10 -> task 1.3 | E10: 2019-09-16 | F10: 2019-09-27 | G10: =_xlfn.AGGREGATE( AGGR_FUN, AGGR_OPT, G11:G14 ) * nFACTOR -> 72 | H10: =_xlfn.AGGREGATE( AGGR_FUN, AGGR_OPT, H11:H14 ) * nFACTOR -> 28800
A11: 1.3.1 | B11: ="task " & A11 -> task 1.3.1 | C11: ="descr " & A11 -> descr 1.3.1 | D11: ="resource " & A11 -> resource 1.3.1 | E11: 2019-09-16 | F11: 2019-09-20 | G11: 40 | H11: =G11*400 -> 16000
A12: 1.3.2 | B12: ="task " & A12 -> task 1.3.2 | C12: ="descr " & A12 -> descr 1.3.2 | D12: ="resource " & A12 -> resource 1.3.2 | E12: 2019-09-23 | F12: 2019-09-24 | G12: 16 | H12: 6400
A13: 1.3.3 | B13: ="task " & A13 -> task 1.3.3 | C13: ="descr " & A13 -> descr 1.3.3 | D13: ="resource " & A13 -> resource 1.3.3 | E13: 2019-09-24 | F13: 2019-09-25 | G13: 8 | H13: 3200
A14: 1.3.4 | B14: ="task " & A14 -> task 1.3.4 | C14: ="descr " & A14 -> descr 1.3.4 | D14: ="resource " & A14 -> resource 1.3.4 | E14: 2019-09-26 | F14: 2019-09-27 | G14: 8 | H14: 3200
A15: 1.4 | B15: ="task " & A15 -> task 1.4 | E15: 2019-10-01 | F15: 2019-11-22
A16: 1.4.1 | B16: ="task " & A16 -> task 1.4.1 | E16: 2019-10-01 | F16: 2019-10-18 | G16: =_xlfn.AGGREGATE( AGGR_FUN, AGGR_OPT, G17:G20 ) * nFACTOR -> 40 | H16: =_xlfn.AGGREGATE( AGGR_FUN, AGGR_OPT, H17:H20 ) * nFACTOR -> 16000
A17: 1.4.1.1 | B17: ="task " & A17 -> task 1.4.1.1 | C17: ="descr " & A17 -> descr 1.4.1.1 | D17: ="resource " & A17 -> resource 1.4.1.1 | E17: 2019-10-01 | F17: 2019-10-04 | G17: 12 | H17: =G17*400 -> 4800
A18: 1.4.1.2 | B18: ="task " & A18 -> task 1.4.1.2 | C18: ="descr " & A18 -> descr 1.4.1.2 | D18: ="resource " & A18 -> resource 1.4.1.2 | E18: 2019-10-07 | F18: 2019-10-11 | G18: 12 | H18: 4800
A19: 1.4.1.3 | B19: ="task " & A19 -> task 1.4.1.3 | C19: ="descr " & A19 -> descr 1.4.1.3 | D19: ="resource " & A19 -> resource 1.4.1.3 | E19: 2019-10-07 | F19: 2019-10-11 | G19: 4 | H19: 1600
A20: 1.4.1.4 | B20: ="task " & A20 -> task 1.4.1.4 | C20: ="descr " & A20 -> descr 1.4.1.4 | D20: ="resource " & A20 -> resource 1.4.1.4 | E20: 2019-10-14 | F20: 2019-10-18 | G20: 12 | H20: 4800
A21: 1.4.2 | B21: ="task " & A21 -> task 1.4.2 | E21: 2019-10-21 | F21: 2019-10-25 | G21: =_xlfn.AGGREGATE( AGGR_FUN, AGGR_OPT, G22:G25 ) * nFACTOR -> 10 | H21: =_xlfn.AGGREGATE( AGGR_FUN, AGGR_OPT, H22:H25 ) * nFACTOR -> 4000
A22: 1.4.2.1 | B22: ="task " & A22 -> task 1.4.2.1 | C22: ="descr " & A22 -> descr 1.4.2.1 | D22: ="resource " & A22 -> resource 1.4.2.1 | E22: 2019-10-21 | F22: 2019-10-22 | G22: 4 | H22: =G22*400 -> 1600
A23: 1.4.2.2 | B23: ="task " & A23 -> task 1.4.2.2 | C23: ="descr " & A23 -> descr 1.4.2.2 | D23: ="resource " & A23 -> resource 1.4.2.2 | E23: 2019-10-21 | F23: 2019-10-22 | G23: 2 | H23: 800
A24: 1.4.2.3 | B24: ="task " & A24 -> task 1.4.2.3 | C24: ="descr " & A24 -> descr 1.4.2.3 | D24: ="resource " & A24 -> resource 1.4.2.3 | E24: 2019-10-23 | F24: 2019-10-24 | G24: 2 | H24: 800
A25: 1.4.2.4 | B25: ="task " & A25 -> task 1.4.2.4 | C25: ="descr " & A25 -> descr 1.4.2.4 | D25: ="resource " & A25 -> resource 1.4.2.4 | E25: 2019-10-25 | F25: 2019-10-25 | G25: 2 | H25: 800
A26: 1.4.3 | B26: ="task " & A26 -> task 1.4.3 | E26: 2019-10-01 | F26: 2019-10-25 | G26: =_xlfn.AGGREGATE( AGGR_FUN, AGGR_OPT, G27:G30 ) * nFACTOR -> 33 | H26: =_xlfn.AGGREGATE( AGGR_FUN, AGGR_OPT, H27:H30 ) * nFACTOR -> 13200
A27: 1.4.3.1 | B27: ="task " & A27 -> task 1.4.3.1 | C27: ="descr " & A27 -> descr 1.4.3.1 | D27: ="resource " & A27 -> resource 1.4.3.1 | E27: 2019-10-01 | F27: 2019-10-04 | G27: 12 | H27: =G27*400 -> 4800
A28: 1.4.3.2 | B28: ="task " & A28 -> task 1.4.3.2 | C28: ="descr " & A28 -> descr 1.4.3.2 | D28: ="resource " & A28 -> resource 1.4.3.2 | E28: 2019-10-07 | F28: 2019-10-11 | G28: 12 | H28: 4800
A29: 1.4.3.3 | B29: ="task " & A29 -> task 1.4.3.3 | C29: ="descr " & A29 -> descr 1.4.3.3 | D29: ="resource " & A29 -> resource 1.4.3.3 | E29: 2019-10-14 | F29: 2019-10-16 | G29: 1 | H29: 400
A30: 1.4.3.4 | B30: ="task " & A30 -> task 1.4.3.4 | C30: ="descr " & A30 -> descr 1.4.3.4 | D30: ="resource " & A30 -> resource 1.4.3.4 | E30: 2019-10-23 | F30: 2019-10-25 | G30: 8 | H30: 3200
A31: 1.4.4 | B31: ="task " & A31 -> task 1.4.4 | E31: 2019-11-04 | F31: 2019-11-22 | G31: =_xlfn.AGGREGATE( AGGR_FUN, AGGR_OPT, G32:G35 ) * nFACTOR -> 32 | H31: =_xlfn.AGGREGATE( AGGR_FUN, AGGR_OPT, H32:H35 ) * nFACTOR -> 12800
A32: 1.4.4.1 | B32: ="task " & A32 -> task 1.4.4.1 | C32: ="descr " & A32 -> descr 1.4.4.1 | D32: ="resource " & A32 -> resource 1.4.4.1 | E32: 2019-11-04 | F32: 2019-11-08 | G32: 8 | H32: =G32*400 -> 3200
A33: 1.4.4.2 | B33: ="task " & A33 -> task 1.4.4.2 | C33: ="descr " & A33 -> descr 1.4.4.2 | D33: ="resource " & A33 -> resource 1.4.4.2 | E33: 2019-11-11 | F33: 2019-11-11 | G33: 4 | H33: 1600
A34: 1.4.4.3 | B34: ="task " & A34 -> task 1.4.4.3 | C34: ="descr " & A34 -> descr 1.4.4.3 | D34: ="resource " & A34 -> resource 1.4.4.3 | E34: 2019-11-12 | F34: 2019-11-15 | G34: 12 | H34: 4800
A35: 1.4.4.4 | B35: ="task " & A35 -> task 1.4.4.4 | C35: ="descr " & A35 -> descr 1.4.4.4 | D35: ="resource " & A35 -> resource 1.4.4.4 | E35: 2019-11-18 | F35: 2019-11-22 | G35: 8 | H35: 3200
A36: 1.4.5 | B36: ="task " & A36 -> task 1.4.5 | E36: 2019-11-18 | F36: 2019-11-18 | G36: =_xlfn.AGGREGATE( AGGR_FUN, AGGR_OPT, G37:G40 ) * nFACTOR -> 5 | H36: =_xlfn.AGGREGATE( AGGR_FUN, AGGR_OPT, H37:H40 ) * nFACTOR -> 2000
A37: 1.4.5.1 | B37: ="task " & A37 -> task 1.4.5.1 | C37: ="descr " & A37 -> descr 1.4.5.1 | D37: ="resource " & A37 -> resource 1.4.5.1 | E37: 2019-11-18 | F37: 2019-11-18 | G37: 1 | H37: =G37*400 -> 400
A38: 1.4.5.2 | B38: ="task " & A38 -> task 1.4.5.2 | C38: ="descr " & A38 -> descr 1.4.5.2 | D38: ="resource " & A38 -> resource 1.4.5.2 | E38: 2019-11-18 | F38: 2019-11-18 | G38: 2 | H38: 800
A39: 1.4.5.3 | B39: ="task " & A39 -> task 1.4.5.3 | C39: ="descr " & A39 -> descr 1.4.5.3 | D39: ="resource " & A39 -> resource 1.4.5.3 | E39: 2019-11-18 | F39: 2019-11-18 | G39: 1 | H39: 400
A40: 1.4.5.4 | B40: ="task " & A40 -> task 1.4.5.4 | C40: ="descr " & A40 -> descr 1.4.5.4 | D40: ="resource " & A40 -> resource 1.4.5.4 | E40: 2019-11-18 | F40: 2019-11-18 | G40: 1 | H40: 400
A41: 1.5 | B41: ="task " & A41 -> task 1.5 | E41: 2019-11-25 | F41: 2019-12-20 | G41: =_xlfn.AGGREGATE( AGGR_FUN, AGGR_OPT, G42:G46 ) * nFACTOR -> 23 | H41: =_xlfn.AGGREGATE( AGGR_FUN, AGGR_OPT, H42:H46 ) * nFACTOR -> 9200
A42: 1.5.1 | B42: ="task " & A42 -> task 1.5.1 | C42: ="descr " & A42 -> descr 1.5.1 | D42: ="resource " & A42 -> resource 1.5.1 | E42: 2019-11-25 | F42: 2019-11-28 | G42: 1 | H42: =G42*400 -> 400
A43: 1.5.2 | B43: ="task " & A43 -> task 1.5.2 | C43: ="descr " & A43 -> descr 1.5.2 | D43: ="resource " & A43 -> resource 1.5.2 | E43: 2019-11-29 | F43: 2019-11-29 | G43: 8 | H43: 3200
A44: 1.5.3 | B44: ="task " & A44 -> task 1.5.3 | C44: ="descr " & A44 -> descr 1.5.3 | D44: ="resource " & A44 -> resource 1.5.3 | E44: 2019-12-02 | F44: 2019-12-06 | G44: 4 | H44: 1600
A45: 1.5.4 | B45: ="task " & A45 -> task 1.5.4 | C45: ="descr " & A45 -> descr 1.5.4 | D45: ="resource " & A45 -> resource 1.5.4 | E45: 2019-12-09 | F45: 2019-12-13 | G45: 8 | H45: 3200
A46: 1.5.5 | B46: ="task " & A46 -> task 1.5.5 | C46: ="descr " & A46 -> descr 1.5.5 | D46: ="resource " & A46 -> resource 1.5.5 | E46: 2019-12-16 | F46: 2019-12-20 | G46: 2 | H46: 800
A47: 1.6 | B47: ="task " & A47 -> task 1.6 | E47: 2019-12-16 | F47: 2019-12-20 | G47: =_xlfn.AGGREGATE( AGGR_FUN, AGGR_OPT, G48:G49 ) * nFACTOR -> 9 | H47: =_xlfn.AGGREGATE( AGGR_FUN, AGGR_OPT, H48:H49 ) * nFACTOR -> 3600
A48: 1.6.1 | B48: ="task " & A48 -> task 1.6.1 | C48: ="descr " & A48 -> descr 1.6.1 | D48: ="resource " & A48 -> resource 1.6.1 | E48: 2019-12-16 | F48: 2019-12-20 | G48: 8 | H48: =G48*400 -> 3200
A49: 1.6.2 | B49: ="task " & A49 -> task 1.6.2 | C49: ="descr " & A49 -> descr 1.6.2 | D49: ="resource " & A49 -> resource 1.6.2 | E49: 2019-12-16 | F49: 2019-12-20 | G49: 1 | H49: 400
A50: 1.7 | B50: ="task " & A50 -> task 1.7 | E50: 2019-12-23 | F50: 2019-12-23 | G50: =_xlfn.AGGREGATE( AGGR_FUN, AGGR_OPT, G51 ) * nFACTOR -> 12 | H50: =_xlfn.AGGREGATE( AGGR_FUN, AGGR_OPT, H51 ) * nFACTOR -> 4800
A51: 1.7.1 | B51: ="task " & A51 -> task 1.7.1 | C51: ="descr " & A51 -> descr 1.7.1 | D51: ="resource " & A51 -> resource 1.7.1 | E51: 2019-12-23 | F51: 2019-12-23 | G51: 12 | H51: =G51*400 -> 4800
